Workbook

Sheet NSU
B1: Lydia Eskola | E1: 5.7.2005 Pöytyä
B2: SUPERPESIS | E2: Runkosarja | I2: Kärkilyönnit (KL), pesänvälit | Q2: Runkosarja | U2: Ylempi loppusarja | Z2: Alempi loppusarja | AG2: Arvo-ottelut ja mitalit
B3: Vuosi | C3: Sija | D3: Seura | E3: OTT | F3: KUN | G3: LÖI | H3: TOI | I3: KL | J3: 0 > 1 | K3: 1 > 2 | L3: 2 > 3 | M3: 3 > k | N3: KL-% | P3: LÖI | Q3: TOI | R3: L+T | S3: KL | U3: OTT | V3: KUN | W3: LÖI | X3: TOI | Y3: KL | Z3: OTT | AA3: KUN | AB3: LÖI | AC3: TOI | AD3: KL | AE3: IL | AF3: LL | AG3: Halli | AH3: K | AI3: H | AJ3: P
B4: 2021 | C4: 2. | D4: LaJy | F4: suomensarja
B5: 2021 | C5: 1. | D5: PöU | F5: ykköspesis
B6: 2022 | C6: 6. | D6: PöU 2 | F6: suomensarja
B7: 2022 | C7: 4. | D7: MyVe | F7: ykköspesis
B8: 2023 | C8: 1. | D8: PöU | F8: ykköspesis
B9: 2024 | C9: 11. | D9: PöU | E9: 24 | F9: 2 | G9: 2 | H9: 4 | I9: 34 | J9: 8 | K9: 10 | L9: 12 | M9: 4 | N9: 44.2 % | O9: 77 | Z9: 8 | AA9: 0 | AB9: 1 | AC9: 2 | AD9: 6
B10: Yhteensä | E10: =SUM(E4:E9) -> 24 | F10: =SUM(F4:F9) -> 2 | G10: =SUM(G4:G9) -> 2 | H10: =SUM(H4:H9) -> 4 | I10: =SUM(I4:I9) -> 34 | J10: =SUM(J4:J9) -> 8 | K10: =SUM(K4:K9) -> 10 | L10: =SUM(L4:L9) -> 12 | M10: =SUM(M4:M9) -> 4 | N10: =PRODUCT(I10/O10) -> 44.2 % | O10: =SUM(O4:O9) -> 77 | U10: =SUM(U4:U9) -> 0 | V10: =SUM(V4:V9) -> 0 | W10: =SUM(W4:W9) -> 0 | X10: =SUM(X4:X9) -> 0 | Y10: =SUM(Y4:Y9) -> 0 | Z10: =SUM(Z4:Z9) -> 8 | AA10: =SUM(AA4:AA9) -> 0 | AB10: =SUM(AB4:AB9) -> 1 | AC10: =SUM(AC4:AC9) -> 2 | AD10: =SUM(AD4:AD9) -> 6 | AE10: =SUM(AE4:AE9) -> 0 | AF10: =SUM(AF4:AF9) -> 0 | AG10: =SUM(AG4:AG9) -> 0 | AH10: =SUM(AH4:AH9) -> 0 | AI10: =SUM(AI4:AI9) -> 0 | AJ10: =SUM(AJ4:AJ9) -> 0
B11: Pesispörssi | D11: =SUM(F10:H10)+((I10-F10-G10)/3)+(E10/3)+(AE10*25)+(AF10*25)+(AG10*10)+(AH10*25)+(AI10*20)+(AJ10*15) -> 26.0
B13: URA SUPERISSA | E13: OTT | F13: KUN | G13: LÖI | H13: TOI | I13: KL | K13: ka/L | L13: ka/T | M13: ka/KL | N13: K - % | P13: ENSIMMÄISET
B14: Runkosarja | E14: =PRODUCT(E10) -> 24 | F14: =PRODUCT(F10) -> 2 | G14: =PRODUCT(G10) -> 2 | H14: =PRODUCT(H10) -> 4 | I14: =PRODUCT(I10) -> 34 | K14: =PRODUCT((F14+G14)/E14) -> 0.17 | L14: =PRODUCT(H14/E14) -> 0.17 | M14: =PRODUCT(I14/E14) -> 1.42 | N14: =PRODUCT(N10) -> 44.2 % | O14: =PRODUCT(O10) -> 77 | P14: Ottelu | R14: 08.05. 2024 Pesäkarhut - PöU 2-0 (3-2, 3-0) | AB14: 1. ottelu | AG14: 18 v 10 kk 3 pv
B15: Ylempi loppusarja | P15: Lyöty | R15: 04.06. 2024 Roihu - PöU 0-1 (9-5, 8-2) | AB15: 8. ottelu | AG15: 18 v 10 kk 30 pv
B16: Alempi loppusarja | E16: =PRODUCT(Z10) -> 8 | F16: =PRODUCT(AA10) -> 0 | G16: 1 | H16: 2 | I16: 6 | K16: =PRODUCT((F16+G16)/E16) -> 0.13 | L16: =PRODUCT(H16/E16) -> 0.25 | M16: =PRODUCT(I16/E16) -> 0.75 | N16: =PRODUCT(I16/O16) -> 23.1 % | O16: 26 | P16: Tuotu | R16: 21.07. 2024 JoMa - PöU 0-1 (2-2, 1-6) | AB16: 19. ottelu | AG16: 19 v 0 kk 16 pv
B17: KAIKKI | E17: =SUM(E14:E16) -> 32 | F17: =SUM(F14:F16) -> 2 | G17: =SUM(G14:G16) -> 3 | H17: =SUM(H14:H16) -> 6 | I17: =SUM(I14:I16) -> 40 | K17: =PRODUCT((F17+G17)/E17) -> 0.16 | L17: =PRODUCT(H17/E17) -> 0.19 | M17: =PRODUCT(I17/E17) -> 1.25 | N17: =PRODUCT(I17/O17) -> 38.8 % | O17: =SUM(O14:O16) -> 103 | P17: Kunnari | R17: 21.07. 2024 JoMa - PöU 0-1 (2-2, 1-6) | AB17: 19. ottelu | AG17: 19 v 0 kk 16 pv
B19: Vuoden tyttölukkari 2023
B21: Seurat | D21: PöU = Pöytyän Urheilijat (1945), kasvattajaseura
D22: LaJy = Laitilan Jyske (1911)

Sheet NYP,NSS
B1: Lydia Eskola | E1: 5.7.2005 Pöytyä
B2: YKKÖSPESIS | E2: Runkosarja | L2: Runkosarja TOP-10 | Q2: Jatkosarjat | X2: SUOMENSARJA | AA2: Runkosarja | AH2: Runkosarja TOP-10 | AM2: Jatkosarjat
B3: Vuosi | C3: Sija | D3: Seura | E3: OTT | F3: KUN | G3: LÖI | H3: TOI | I3: KL | J3: KL-% | L3: LÖI | M3: TOI | N3: L+T | O3: KL | Q3: OTT | R3: KUN | S3: LÖI | T3: TOI | U3: KL | V3: KL-% | X3: Vuosi | Y3: Sija | Z3: Seura | AA3: OTT | AB3: KUN | AC3: LÖI | AD3: TOI | AE3: KL | AF3: KL-% | AH3: LÖI | AI3: TOI | AJ3: L+T | AK3: KL | AM3: OTT | AN3: KUN | AO3: LÖI | AP3: TOI | AQ3: KL | AR3: KL-%
B4: 2021 | C4: 1. | D4: PöU | E4: 1 | F4: 0 | G4: 0 | H4: 0 | I4: 1 | J4: 20.0 % | K4: 5 | X4: 2021 | Y4: 2. | Z4: LaJy | AA4: 5 | AB4: 1 | AC4: 16 | AD4: 7 | AE4: 24 | AF4: 80.0 % | AG4: 30 | AM4: 1 | AN4: 0 | AO4: 0 | AP4: 1 | AQ4: 0 | AR4: 0.0 % | AS4: 4
B5: 2022 | C5: 4. | D5: MyVe | E5: 22 | F5: 0 | G5: 17 | H5: 10 | I5: 58 | J5: =PRODUCT(58/116) -> 50.0 % | K5: 116 | Q5: 3 | R5: 1 | S5: 4 | T5: 2 | U5: 10 | V5: 66.7 % | W5: 15 | X5: 2022 | Y5: 6. | Z5: PöU 2 | AA5: 6 | AB5: 1 | AC5: 7 | AD5: 3 | AE5: 25 | AF5: 64.1 % | AG5: 39
B6: 2023 | C6: 1. | D6: PöU | E6: 22 | F6: 0 | G6: 14 | H6: 11 | I6: 48 | J6: =PRODUCT(48/89) -> 53.9 % | K6: 89 | Q6: 6 | R6: 0 | S6: 2 | T6: 1 | U6: 11 | V6: 47.8 % | W6: 23
B7: YHTEENSÄ | E7: =SUM(E4:E6) -> 45 | F7: =SUM(F4:F6) -> 0 | G7: =SUM(G4:G6) -> 31 | H7: =SUM(H4:H6) -> 21 | I7: =SUM(I4:I6) -> 107 | J7: =PRODUCT(I7/K7) -> 51.0 % | K7: =SUM(K4:K6) -> 210 | Q7: =SUM(Q4:Q6) -> 9 | R7: =SUM(R4:R6) -> 1 | S7: =SUM(S4:S6) -> 6 | T7: =SUM(T4:T6) -> 3 | U7: =SUM(U4:U6) -> 21 | V7: =PRODUCT(U7/W7) -> 55.3 % | W7: =SUM(W4:W6) -> 38 | X7: YHTEENSÄ | AA7: =SUM(AA4:AA6) -> 11 | AB7: =SUM(AB4:AB6) -> 2 | AC7: =SUM(AC4:AC6) -> 23 | AD7: =SUM(AD4:AD6) -> 10 | AE7: =SUM(AE4:AE6) -> 49 | AF7: =PRODUCT(AE7/AG7) -> 71.0 % | AG7: =SUM(AG4:AG6) -> 69 | AM7: =SUM(AM4:AM6) -> 1 | AN7: =SUM(AN4:AN6) -> 0 | AO7: =SUM(AO4:AO6) -> 0 | AP7: =SUM(AP4:AP6) -> 1 | AQ7: =SUM(AQ4:AQ6) -> 0 | AR7: 0.0 % | AS7: =SUM(AS4:AS6) -> 4
B9: KAIKKI OTTELUT | E9: OTT | F9: KUN | G9: LÖI | H9: TOI | I9: KL | J9: KL-% | L9: ka/L | M9: ka/T | N9: ka/l+t | O9: ka/kl | R9: Seurat | T9: PöU = Pöytyän Urheilijat (1945), kasvattajaseura
B10: SUPERPESIS | E10: 0 | F10: 0 | G10: 0 | H10: 0 | I10: 0 | J10: 0.0 % | L10: 0.00 | M10: 0.00 | N10: 0.00 | O10: 0.00 | T10: LaJy = Laitilan Jyske (1911)
B11: YKKÖSPESIS | E11: =PRODUCT(E7+Q7) -> 54 | F11: =PRODUCT(F7+R7) -> 1 | G11: =PRODUCT(G7+S7) -> 37 | H11: =PRODUCT(H7+T7) -> 24 | I11: =PRODUCT(I7+U7) -> 128 | J11: =PRODUCT(I11/K11) -> 51.6 % | K11: =PRODUCT(K7+W7) -> 248 | L11: =PRODUCT((F11+G11)/E11) -> 0.70 | M11: =PRODUCT(H11/E11) -> 0.44 | N11: =PRODUCT((F11+G11+H11)/E11) -> 1.15 | O11: =PRODUCT(I11/E11) -> 2.37
B12: SUOMENSARJA | E12: =PRODUCT(AA7+AM7) -> 12 | F12: =PRODUCT(AB7+AN7) -> 2 | G12: =PRODUCT(AC7+AO7) -> 23 | H12: =PRODUCT(AD7+AP7) -> 11 | I12: =PRODUCT(AE7+AQ7) -> 49 | J12: =PRODUCT(I12/K12) -> 67.1 % | K12: =PRODUCT(AG7+AS7) -> 73 | L12: =PRODUCT((F12+G12)/E12) -> 2.08 | M12: =PRODUCT(H12/E12) -> 0.92 | N12: =PRODUCT((F12+G12+H12)/E12) -> 3.00 | O12: =PRODUCT(I12/E12) -> 4.08
B13: YHTEENSÄ | E13: =SUM(E10:E12) -> 66 | F13: =SUM(F10:F12) -> 3 | G13: 60 | H13: 35 | I13: 177 | J13: =PRODUCT(I13/K13) -> 55.1 % | K13: =SUM(K10:K12) -> 321 | L13: =PRODUCT((F13+G13)/E13) -> 0.95 | M13: =PRODUCT(H13/E13) -> 0.53 | N13: =PRODUCT((F13+KG13+H13)/E13) -> 0.58 | O13: =PRODUCT(I13/E13) -> 2.68

Sheet Arvo-ottelut
B1: ITÄ - LÄNSI - KORTTI
B2: Lydia Eskola | C2: 5.7.2005 Pöytyä
B3: B-TYTÖT | C3: Itä - Länsi, tulos | D3: Joukkue | E3: Seura | G3: V | H3: T | I3: H | J3: Up. | K3: Lj. | L3: Palk. | M3: O | N3: K | O3: L | P3: T | Q3: KL | R3: 1 | S3: 2 | T3: 3 | U3: k | V3: KL-% | W3: Pelinjohtaja | X3: Yleisöä
B4: 29.06. 2024 Jyväskylä | C4: 0-2 (0-3, 0-3) | D4: Länsi | E4: LaJy | G4: 1 | J4: L | K4: 5 | L4: A | M4: 1 | Q4: 4/4 | R4: 1/1 | T4: 2/2 | U4: 1/1 | V4: 100.0 % | W4: Tero Tuomela | X4: 1422
